[Event "BCS-Floripa Super Blitz 2025"]
[Site "Florianopolis"]
[Date "2025.01.22"]
[Round "5.16"]
[White "Dos Santos, Leonardo Lopes"]
[Black "Cueto, Jonny"]
[Result "1-0"]
[Annotator "TA"]
[ECO "B07"]
[WhiteElo "1831"]
[BlackElo "2126"]
[PlyCount "177"]
[EventDate "2025.01.18"]
[EventType "swiss"]
[EventCountry "BRA"]
[SourceTitle "playchess.com"]
[Source "ChessBase"]
[SourceQuality "1"]
[TimeControl "180+2"]

{[%evp 17,177,-25,-25,-31,-24,-24,-28,-48,-50,-116,-31,-54,-45,-52,-36,-67,-68,-70,-63,-68,-64,-79,-57,-58,-52,-101,-100,-104,-97,-101,-56,-110,-108,-117,-122,-277,-227,-332,-315,-285,-219,-238,-238,-288,-296,-296,-295,-289,-289,-349,0,-257,-33,-33,-33,-33,-33,-33,-33,-33,-33,-35,-25,-33,-33,-36,-45,-62,-32,-62,-80,-76,-33,-33,-33,-33,-33,-56,-22,-63,-44,-63,-33,-75,-30,-244,-244,-244,-223,-240,-232,-615,-615,-667,-719,-639,-75,-560,0,-477,479,460,429,433,663,656,639,579,568,532,452,414,5072,5072,29969,29963,29983,29984,29986,29987,29987,29988,29989,29990,29990,29991,29991,29992,29994,29993,29993,29993,29993,29993,29993,29983,29987,0,29985,29986,29986,29987,29987,29988,29989,29990,29991,29990,29990,29991,29991,29988,29988,0,29991,0,29985,29984,29984,29985,29985,29986]} 1. e4 {[%emt 0:00:02]} d6 {[%emt 0:00:04]} 2. d4 {[%emt 0:00:02]} Nf6 {[%emt 0:00:01]} 3. Nc3 {[%emt 0:00:01]} e5 {[%emt 0:00:01]} 4. dxe5 {[%emt 0:00:08]} dxe5 {[%emt 0:00:00]} 5. Qxd8+ {[%emt 0:00:03]} Kxd8 {[%emt 0:00:01]} 6. Bg5 {[%emt 0:00:02]} Be6 {[%emt 0:00:01]} 7. O-O-O+ {[%emt 0:00:02]} Nbd7 {[%emt 0:00:01]} 8. Nd5 {[%emt 0:00:11]} Kc8 {[%emt 0:00:12]} 9. Nxf6 {[%emt 0:00:07]} Nxf6 {[%emt 0:00:14]} 10. Bd3 {[%emt 0:00:25]} Bc5 {[%emt 0:00:02]} 11. f3 {[%emt 0:00:04] Prevents Ng4.} Nd7 {[%emt 0:00:06][%cal Of7f6]} (11... Bxa2 $6 12. b3 $16) 12. Ne2 {[%emt 0:00:04]} f6 {[%emt 0:02:43]} 13. Bd2 {[%emt 0:00:09]} ({White should play} 13. Bh4 $1 $15) 13... a5 {[%emt 0:00:00]} (13... Bxa2 $17 14. b4 Bf8) 14. Nc3 {[%emt 0:00:04]} c6 {[%emt 0:00:00]} 15. Na4 {[%emt 0:00:05]} Be7 {[%emt 0:00:00]} 16. Be3 {[%emt 0:00:07]} b5 $1 {[%emt 0:00:00]} 17. Nc3 $1 {[%emt 0:00:08]} Bc5 {[%emt 0:00:00]} 18. Bxc5 {[%emt 0:00:11]} Nxc5 {[%emt 0:00:00]} 19. Kb1 {[%emt 0:00:07]} b4 {[%emt 0:00:00]} 20. Ne2 {[%emt 0:00:04]} Rd8 $36 {[%emt 0:00:00][%mdl 2048] Black has some pressure.} 21. f4 {[%emt 0:00:03]} (21. Nc1 $15) 21... Ra7 {[%emt 0:00:00]} 22. fxe5 {[%emt 0:00:13]} fxe5 {[%emt 0:00:00]} 23. Ng3 {[%emt 0:00:06]} a4 {[%emt 0:00:00]} 24. Rhf1 {[%emt 0:00:11]} (24. Be2 $1 $15) 24... b3 {[%emt 0:00:00]} 25. a3 {[%emt 0:00:15]} Rad7 {[%emt 0:00:00][%cal Oe6c4]} 26. Nf5 $2 {[%emt 0:00:24]} (26. Kc1 $17) 26... g6 {[%emt 0:00:00]} 27. Ng3 {[%emt 0:00:05]} (27. Ne3 {was called for.}) 27... Nxd3 {[%emt 0:00:00]} 28. cxd3 {[%emt 0:00:03]} Rxd3 {[%emt 0:00:00]} 29. Rxd3 {[%emt 0:00:03]} Rxd3 $19 {[%emt 0:00:00][%mdl 4096] Endgame KRB-KRN. Black is a pawn up.} 30. Rf8+ {[%emt 0:00:08]} Kd7 {[%emt 0:00:00]} 31. Kc1 {[%emt 0:00:04]} Bg4 {[%emt 0:00:00] Against Ne2} 32. Rf1 {[%emt 0:00:07] Repels Rd1+} Ke7 {[%emt 0:00:00]} 33. Nh1 {[%emt 0:00:04]} Re3 $2 {[%emt 0:00:00]} (33... Rd4 $19 34. Nf2 Be2) 34. Nf2 $2 {[%emt 0:00:02][%mdl 8192]} (34. Ng3 $11) 34... Be6 $2 {[%emt 0:00:00]} ({Better is} 34... h5 $1 $19 {Hoping for ...Re2.} 35. Nxg4 hxg4) 35. Kd2 $15 {[%emt 0:00:06]} Bc4 $1 {[%emt 0:00:00]} 36. Re1 {[%emt 0:00:06] Prevents Re2+.} Rxe1 {[%emt 0:00:00]} 37. Kxe1 {[%emt 0:00:00] KB-KN. Black is a pawn up.} Kd6 {[%emt 0:00:00]} 38. Kd2 {[%emt 0:00:01]} Bf1 {[%emt 0:00:00]} 39. g3 {[%emt 0:00:04]} Bg2 {[%emt 0:00:00]} 40. Kc3 {[%emt 0:00:01]} c5 {[%emt 0:00:00]} 41. Kc4 {[%emt 0:00:05]} Bf1+ {[%emt 0:00:00]} 42. Kc3 {[%emt 0:00:00]} h5 {[%emt 0:00:00]} 43. Nd1 {[%emt 0:00:03]} Bg2 {[%emt 0:00:00]} 44. Nf2 {[%emt 0:00:02]} g5 {[%emt 0:00:01]} 45. Kc4 {[%emt 0:00:02]} Bf1+ {[%emt 0:00:01]} 46. Kc3 {[%emt 0:00:01]} Be2 {[%emt 0:00:05]} 47. Kd2 {[%emt 0:00:02]} Bb5 {[%emt 0:00:05]} 48. Kc3 {[%emt 0:00:03]} Ke6 {[%emt 0:00:04]} 49. Nd1 {[%emt 0:00:05]} Be2 {[%emt 0:00:08]} 50. Nf2 {[%emt 0:00:01]} h4 {[%emt 0:00:03]} 51. gxh4 $2 {[%emt 0:00:01]} (51. Nh3 $11 {and White is okay.} Ke7 52. Kd2 (52. Nxg5 $2 hxg3 53. hxg3 Bg4 $19) 52... hxg3 53. hxg3) 51... gxh4 $19 {[%emt 0:00:00]} 52. Kd2 {[%emt 0:00:01]} Bf1 {[%emt 0:00:02]} 53. Kc3 {[%emt 0:00:01]} Kf6 {[%emt 0:00:01]} 54. Kd2 $2 {[%emt 0:00:01]} (54. Ng4+ Kg5 (54... Ke6 $2 55. Ne3 $19) 55. Nxe5) 54... Kg5 {[%emt 0:00:00]} 55. Ke3 {[%emt 0:00:01]} c4 {[%emt 0:00:06][%cal Oc4c3] ( -> ...c3!)} 56. Nd1 {[%emt 0:00:02]} Kg4 $2 {[%emt 0:00:07]} (56... Bh3 $1 $19 {is more deadly.} 57. Nc3 Bd7) 57. Nf2+ $2 {[%emt 0:00:00][%mdl 8192]} (57. Nc3 $17 {was the crucial defense.}) 57... Kg5 {[%emt 0:00:01][%cal Oc4c3]} 58. Nd1 {[%emt 0:00:01] [#]} h3 $4 {[%emt 0:00:04][%mdl 8192]} (58... Bh3 $1 $19 {and all is fine.} 59. Nc3 Bd7) 59. Nc3 $18 {[%emt 0:00:02]} Kf6 {[%emt 0:00:13]} 60. Nxa4 {[%emt 0:00:02] Nc3 would now be deadly.} Ke7 {[%emt 0:00:01]} (60... c3 $142) 61. Nc3 {[%emt 0:00:03]} Kd6 {[%emt 0:00:00]} 62. Kf2 {[%emt 0:00:03]} Bd3 {[%emt 0:00:01]} 63. Kg3 {[%emt 0:00:01]} Kc5 {[%emt 0:00:06]} 64. a4 {[%emt 0:00:03][%cal Ba3a4,Ba4a5][%mdl 32]} Kd4 {[%emt 0:00:04]} (64... Bf1 $142 65. Kg4 Bg2) 65. a5 {[%emt 0:00:01] White wants to mate with a6.} Kc5 {[%emt 0:00:01]} 66. Kxh3 {[%emt 0:00:03]} Kc6 {[%emt 0:00:16]} 67. Kg3 {[%emt 0:00:02]} Kb7 {[%emt 0:00:01]} 68. h4 {[%emt 0:00:02]} Ka6 {[%emt 0:00:14]} 69. h5 {[%emt 0:00:01]} Kxa5 {[%emt 0:00:00]} 70. h6 {[%emt 0:00:03]} Kb4 {[%emt 0:00:02]} 71. h7 {[%emt 0:00:01]} Kc5 {[%emt 0:00:00]} 72. h8=Q {[%emt 0:00:15]} Kd4 {[%emt 0:00:00]} 73. Qd8+ {[%emt 0:00:00]} Ke3 {[%emt 0:00:15]} 74. Qb6+ {[%emt 0:00:00]} Kd2 {[%emt 0:00:00]} 75. Qf2+ {[%emt 0:00:00]} Kc1 {[%emt 0:00:00]} 76. Ne2+ {[%emt 0:00:00]} Kxb2 {[%emt 0:00:00] [#]} 77. Nc1+ $2 {[%emt 0:00:00]} Kc3 $2 {[%emt 0:00:00][%mdl 8192]} (77... Kxc1 $11 78. Kf3 c3 (78... b2 79. Ke3 $11)) 78. Nxd3 {[%emt 0:00:00]} cxd3 {[%emt 0:00:00]} 79. Qc5+ {[%emt 0:00:02]} Kd2 {[%emt 0:00:00]} 80. Qb4+ {[%emt 0:00:02]} Ke2 {[%emt 0:00:00]} 81. Qxb3 {[%emt 0:00:03]} d2 {[%emt 0:00:00]} 82. Qc2 {[%emt 0:00:02]} Ke1 {[%emt 0:00:02]} 83. Qc3 {[%emt 0:00:02]} Ke2 {[%emt 0:00:02]} 84. Qc4+ {[%emt 0:00:03]} Ke3 {[%emt 0:00:01]} 85. Qc3+ {[%emt 0:00:02]} Ke2 $1 {[%emt 0:00:01]} 86. Qc2 {[%emt 0:00:04]} Ke1 $1 {[%emt 0:00:02]} 87. Kg4 {[%emt 0:00:04]} d1=Q+ {[%emt 0:00:20]} 88. Qxd1+ {[%emt 0:00:02]} Kxd1 {[%emt 0:00:00]} 89. Kf5 {[%emt 0:00:01]} 1-0

[Event "BCS-Floripa Super Blitz 2025"]
[Site "Florianopolis"]
[Date "2025.01.22"]
[Round "5.17"]
[White "Becker, Rogerio Sperb"]
[Black "Ramazzotte, Maicon Zilli"]
[Result "1-0"]
[Annotator "TA"]
[ECO "A15"]
[WhiteElo "2126"]
[BlackElo "1785"]
[PlyCount "153"]
[EventDate "2025.01.18"]
[EventType "swiss"]
[EventCountry "BRA"]
[SourceTitle "playchess.com"]
[Source "ChessBase"]
[SourceQuality "1"]
[TimeControl "180+2"]

{[%evp 9,153,22,24,35,56,41,47,38,45,39,36,-19,0,-25,-20,-56,21,35,56,37,132,117,111,118,122,129,195,189,175,180,172,190,218,191,273,229,259,196,202,197,187,89,98,62,59,60,70,60,83,62,155,74,62,58,277,50,443,109,85,-14,0,3,82,83,74,87,102,0,0,0,283,280,510,329,828,817,29990,29991,29991,29992,29997,29972,29989,549,29992,392,385,385,547,372,552,539,419,357,350,350,350,347,317,292,1628,954,1857,400,4710,409,939,12827,12846,12843,29937,12851,29943,29944,29956,29948,29954,29941,29962,29966,29964,29966,10073,29967,29967,29968,29967,29962,29975,29976,29972,29954,29959,29959,29960,29961,29960,29961,29960,29958,29965,29966,6780,6103,29982,29983]} 1. c4 {[%emt 0:00:00]} Nf6 {[%emt 0:00:00]} 2. g3 {[%emt 0:00:02]} g6 {[%emt 0:00:01]} 3. Bg2 {[%emt 0:00:01]} d5 {[%emt 0:00:01]} 4. cxd5 {[%emt 0:00:02]} Nxd5 {[%emt 0:00:01]} 5. Qb3 {[%emt 0:00:03]} Nb6 {[%emt 0:00:05]} 6. Qc3 {[%emt 0:00:01] Prevents Bg7} f6 {[%emt 0:00:08]} 7. d4 {[%emt 0:00:05]} Bg7 {[%emt 0:00:06]} 8. Nf3 {[%emt 0:00:02]} Nc6 {[%emt 0:00:04]} 9. O-O {[%emt 0:00:09]} O-O {[%emt 0:00:01]} 10. a3 {[%emt 0:00:14]} (10. Qb3+ $14 Qd5 11. Qxd5+ Nxd5 12. Nc3 Nxc3 13. bxc3) 10... a5 {[%emt 0:00:08]} 11. h3 {[%emt 0:00:02]} a4 {[%emt 0:00:03]} 12. Rd1 {[%emt 0:00:09]} Nd5 {[%emt 0:00:03]} (12... Bf5 $15) 13. Qc2 $11 {[%emt 0:00:02]} f5 {[%emt 0:00:04]} 14. Nc3 {[%emt 0:00:03]} e6 {[%emt 0:00:05]} (14... Nxc3 $1 $14 15. bxc3 Be6) 15. Nxd5 {[%emt 0:00:04]} exd5 {[%emt 0:00:02]} 16. Bf4 {[%emt 0:00:04]} Qe7 {[%emt 0:00:13]} 17. h4 {[%emt 0:00:04]} Qe4 {[%emt 0:00:03]} (17... h6 $16 18. Rd3 Re8) 18. Qd2 {[%emt 0:00:12]} Qe7 {[%emt 0:00:08]} 19. Rac1 {[%emt 0:00:04]} Re8 {[%emt 0:00:08]} 20. e3 {[%emt 0:00:03]} Be6 {[%emt 0:00:05]} 21. Rc5 {[%emt 0:00:04]} Qd7 {[%emt 0:00:07]} (21... h6 22. Bf1 Bf7) 22. Rdc1 {[%emt 0:00:03]} Bf8 {[%emt 0:00:02]} 23. R5c3 {[%emt 0:00:03]} Bd6 {[%emt 0:00:02]} 24. Bxd6 {[%emt 0:00:07]} Qxd6 {[%emt 0:00:06] [#]} 25. Ne5 {[%emt 0:00:08]} Na5 $16 {[%emt 0:00:09]} 26. Qe1 {[%emt 0:00:24]} (26. Rxc7 Nb3 27. Qd1 Nxc1 28. Rxc1 (28. Qxc1 Rac8 $11) 28... Rec8 $11) 26... c6 {[%emt 0:00:01]} 27. Bf1 $36 {[%emt 0:00:08][%mdl 2048] Dodges Nc4. White is more active.} Nb3 {[%emt 0:00:04]} 28. R1c2 {[%emt 0:00:03]} Kg7 {[%emt 0:00:07]} 29. Qd1 {[%emt 0:00:10]} Rf8 {[%emt 0:00:03]} (29... Bf7 $14) 30. Nd3 {[%emt 0:00:01]} (30. Nxc6 $1 bxc6 31. Rxc6) 30... h6 {[%emt 0:00:04]} 31. Ne5 {[%emt 0:00:03][%cal Re5c6]} Rh8 $2 {[%emt 0:00:19]} (31... Rfc8 $14) 32. Bg2 $2 {[%emt 0:00:05]} (32. Nxc6 $18 bxc6 33. Rxc6) 32... g5 $2 {[%emt 0:00:10][%mdl 8192]} (32... Rhe8 $14) 33. hxg5 $2 {[%emt 0:00:02]} (33. Qh5 $18 {and the rest is easy.} Bg8 34. hxg5) 33... hxg5 {[%emt 0:00:01]} 34. Qf3 {[%emt 0:00:03]} ({White should try} 34. Nxc6 $1 $16 bxc6 35. Rxc6) 34... Raf8 {[%emt 0:00:07]} 35. Nxc6 {[%emt 0:00:10]} g4 {[%emt 0:00:06]} (35... bxc6 36. Rxc6 Qe7 37. Rc7 $16) (35... Na1 $1 $11 36. Rc1 g4 (36... Nb3 37. R1c2 $11)) 36. Qe2 $1 {[%emt 0:00:09]} bxc6 {[%emt 0:00:04]} 37. Rxc6 {[%emt 0:00:01]} Qe7 {[%emt 0:00:01]} 38. Rc7 {[%emt 0:00:05]} (38. Qa6 $1 $16 Rf6 39. Qxa4) 38... Bd7 $11 {[%emt 0:00:01][%cal Be6d7,Bd7c6,Bc6d5][%mdl 32]} 39. Bxd5 {[%emt 0:00:04]} Rc8 $2 {[%emt 0:00:01][%mdl 8192] [#]} (39... Qd6 $11 {and Black has nothing to worry.} 40. Qc4 Kg6 (40... Rc8 $2 41. Qc6 $18)) 40. Qa6 $1 $18 {[%emt 0:00:12]} Nxd4 $2 {[%emt 0:00:12]} (40... Rxc7 41. Rxc7 Rd8 (41... Nd2 $2 42. Qb7 $18)) 41. Qa7 {[%emt 0:00:21]} Rcd8 $2 {[%emt 0:00:14]} (41... Nxc2 $2 42. Rxd7 $18) (41... Nb5 42. Rxd7 Nxa7 43. Rxe7+ Kf6) 42. Qxd4+ {[%emt 0:00:03]} Kg6 {[%emt 0:00:01]} 43. R2c6+ {[%emt 0:00:05]} Bxc6 {[%emt 0:00:06]} 44. Rxe7 {[%emt 0:00:01]} Bxd5 {[%emt 0:00:20]} 45. Qg7+ {[%emt 0:00:05]} Kh5 {[%emt 0:00:01]} 46. Rd7 {[%emt 0:00:05]} (46. Re5 $142 Rhf8 47. e4 Rf7 48. Rxf5+ Rxf5 49. exf5 (49. Qh7+ Kg5 50. Qg7+ Kh5 51. exf5 Rd6 52. Qe7 Kh6 53. Qxd6+ Kg7 54. Qxd5 Kh7) 49... Rd6 50. Qe7 Kh6 51. Qxd6+ Kg7 52. Qxd5) 46... Rdg8 {[%emt 0:00:17] [#]} 47. Qxh8+ $2 {[%emt 0:00:09]} Rxh8 {[%emt 0:00:01]} 48. Rxd5 {[%emt 0:00:02][%mdl 4096] Endgame KR-KR. White is two pawns up.} Kg5 {[%emt 0:00:00]} (48... Kg6 $142 49. Rd4 Rb8) 49. Rd4 {[%emt 0:00:02]} Rb8 {[%emt 0:00:02]} (49... Ra8 {was called for.} 50. Rb4 Kf6) 50. Rxa4 {[%emt 0:00:01]} Rxb2 {[%emt 0:00:01]} 51. Kg2 {[%emt 0:00:00]} Kf6 {[%emt 0:00:03]} 52. Ra8 {[%emt 0:00:01]} Ke5 {[%emt 0:00:00]} 53. a4 {[%emt 0:00:01][%cal Ba3a4,Ba4a5,Ba5a6,Ba6a7][%mdl 32]} Ra2 {[%emt 0:00:01]} 54. a5 {[%emt 0:00:00]} Kf6 $2 {[%emt 0:00:01]} (54... Ke6 55. a6 Kf7) 55. a6 {[%emt 0:00:25]} Kg7 {[%emt 0:00:01]} 56. Kf1 {[%emt 0:00:00]} (56. a7 $142 Ra1 57. Kh2) 56... Kh7 {[%emt 0:00:10]} (56... Ra1+ $142 57. Kg2 Kh6) 57. Ke1 {[%emt 0:00:00]} (57. a7 $142 {Kg1 is the strong threat.} Ra3 58. Ke1) 57... Kg7 {[%emt 0:00:01]} (57... Ra1+ $142 58. Kd2 (58. Ke2 Ra2+ 59. Kd3 Rxf2 $18) 58... Ra2+ 59. Kc3 Rxf2) 58. a7 {[%emt 0:00:00]} Kh7 {[%emt 0:00:00]} 59. Kd1 {[%emt 0:00:00]} Kg7 {[%emt 0:00:01]} 60. Kc1 {[%emt 0:00:00]} Kh7 {[%emt 0:00:01]} 61. Kb1 {[%emt 0:00:00]} Ra6 {[%emt 0:00:01]} 62. Kb2 {[%emt 0:00:00]} Kg7 {[%emt 0:00:01]} 63. Kc3 {[%emt 0:00:00]} Kh7 {[%emt 0:00:01]} 64. Kd4 {[%emt 0:00:00]} Ra5 {[%emt 0:00:03]} 65. Kc4 {[%emt 0:00:00]} Kg7 {[%emt 0:00:00]} 66. Kb4 {[%emt 0:00:00]} Ra1 {[%emt 0:00:01]} 67. Kc5 {[%emt 0:00:00]} Kh7 {[%emt 0:00:06]} 68. Kd6 {[%emt 0:00:00]} Ra6+ {[%emt 0:00:03]} 69. Ke5 {[%emt 0:00:00]} Ra5+ {[%emt 0:00:00]} 70. Kf4 {[%emt 0:00:00]} Kg7 {[%emt 0:00:04]} 71. Kg5 {[%emt 0:00:00]} Kh7 {[%emt 0:00:03]} 72. Rf8 {[%emt 0:00:00]} Rxa7 {[%emt 0:00:02]} 73. Rxf5 {[%emt 0:00:00]} Rg7+ {[%emt 0:00:03]} 74. Kf4 {[%emt 0:00:00]} Kh6 {[%emt 0:00:02]} 75. e4 {[%emt 0:00:00]} Rg6 {[%emt 0:00:02]} 76. e5 {[%emt 0:00:00] Threatening mate with Rf6.} Kh7 {[%emt 0:00:02]} 77. Rh5+ {[%emt 0:00:02]} 1-0